[Event "FISU WUMSCC Women 2024"]
[Site "Entebbe"]
[Date "2024.06.28"]
[Round "7.1"]
[White "Salonika, Saina"]
[Black "Kubicka, Anna"]
[Result "1/2-1/2"]
[ECO "C76"]
[WhiteElo "2103"]
[BlackElo "2334"]
[Annotator "RC"]
[PlyCount "90"]
[EventDate "2024.06.24"]
[EventType "swiss"]
[EventCountry "UGA"]
[SourceTitle "playchess.com"]
[Source "ChessBase"]
[SourceQuality "1"]
[TimeControl "5400+30"]

1. e4 {[%emt 0:00:04]} e5 {[%emt 0:00:16]} 2. Nf3 {[%emt 0:00:05]} Nc6 {[%emt 0:00:05]} 3. Bb5 {[%emt 0:00:10]} g6 {[%emt 0:00:09]} 4. O-O {[%emt 0:01:51]} Bg7 {[%emt 0:00:17]} 5. c3 {[%emt 0:00:10]} a6 {[%emt 0:00:20]} 6. Ba4 {[%emt 0:00:19]} d6 {[%emt 0:00:11]} 7. d4 {[%emt 0:01:58]} Bd7 {[%emt 0:00:13]} 8. d5 {[%emt 0:00:38]} Nce7 {[%emt 0:00:16]} 9. Bxd7+ {[%emt 0:00:19]} Qxd7 {[%emt 0:00:05]} 10. c4 {[%emt 0:00:38]} h6 {[%emt 0:00:13]} 11. Ne1 {[%emt 0:02:52]} f5 {[%emt 0:00:17]} 12. f3 {[%emt 0:01:10]} Nf6 {[%emt 0:01:58]} 13. Nc3 {[%emt 0:00:54]} O-O {[%emt 0:03:44]} 14. Nd3 {[%emt 0:11:34]} Rf7 {[%emt 0:16:57]} 15. Qe2 {[%emt 0:12:06]} f4 {[%emt 0:10:51]} 16. Bd2 {[%emt 0:05:24]} g5 {[%emt 0:00:55]} 17. b4 {[%emt 0:05:50]} h5 {[%emt 0:05:40]} 18. a4 {[%emt 0:12:38]} Bh6 {[%emt 0:07:43]} 19. b5 {[%emt 0:10:04]} Rg7 {[%emt 0:04:32]} 20. c5 {[%emt 0:05:32]} g4 {[%emt 0:04:04]} 21. c6 {[%emt 0:01:35]} bxc6 {[%emt 0:00:20]} 22. dxc6 {[%emt 0:01:28]} gxf3 {[%emt 0:01:13]} 23. Qxf3 {[%emt 0:00:55]} Qe6 {[%emt 0:04:55]} 24. Nb4 {[%emt 0:00:15]} Ng6 {[%emt 0:01:54]} 25. Be1 {[%emt 0:01:30]} axb5 {[%emt 0:03:35]} 26. Nbd5 {[%emt 0:01:00]} Nxd5 {[%emt 0:08:25]} 27. Nxd5 {[%emt 0:00:22]} Rxa4 {[%emt 0:04:57]} 28. Rxa4 {[%emt 0:00:40]} bxa4 {[%emt 0:00:02]} 29. Qxh5 {[%emt 0:00:23]} Kh7 {[%emt 0:09:46]} 30. Ba5 {[%emt 0:09:12]} Ne7 {[%emt 0:06:22]} 31. Qe8 {[%emt 0:00:30]} Qg6 {[%emt 0:02:09]} 32. Qxg6+ {[%emt 0:00:23]} Kxg6 {[%emt 0:00:02]} 33. Nxe7+ {[%emt 0:00:14]} Rxe7 {[%emt 0:00:02]} 34. Ra1 {[%emt 0:00:35]} Re8 {[%emt 0:00:30]} 35. Bxc7 {[%emt 0:00:56]} Rc8 {[%emt 0:00:04]} 36. Bxd6 {[%emt 0:00:16]} Rxc6 {[%emt 0:00:04]} 37. Bxe5 {[%emt 0:00:20]} Re6 {[%emt 0:00:32]} 38. Bb2 {[%emt 0:02:01]} Rxe4 {[%emt 0:00:08]} 39. Kf2 {[%emt 0:00:04]} Rb4 {[%emt 0:00:33]} 40. Bc1 {[%emt 0:00:19]} Rc4 {[%emt 0:01:09]} 41. Kf3 {[%emt 0:02:23]} Rc3+ {[%emt 0:00:28]} 42. Kg4 {[%emt 0:01:14]} Rc2 {[%emt 0:01:05]} 43. Bxf4 {[%emt 0:00:47]} Bxf4 {[%emt 0:02:54]} 44. Kxf4 {[%emt 0:00:04]} Rxg2 {[%emt 0:00:12]} 45. Rxa4 {[%emt 0:00:15]} Rxh2 {[%emt 0:00:07]} 1/2-1/2

[Event "FISU WUMSCC Women 2024"]
[Site "Entebbe"]
[Date "2024.06.28"]
[Round "7.3"]
[White "Aakanksha Hagawane"]
[Black "Kanakova, Natalie"]
[Result "1-0"]
[ECO "B30"]
[WhiteElo "2149"]
[BlackElo "2167"]
[Annotator "RC"]
[PlyCount "83"]
[EventDate "2024.06.24"]
[EventType "swiss"]
[EventCountry "UGA"]
[SourceTitle "playchess.com"]
[Source "ChessBase"]
[SourceQuality "1"]
[TimeControl "5400+30"]

1. e4 {[%emt 0:00:04]} c5 {[%emt 0:00:38]} 2. Nf3 {[%emt 0:00:09]} Nc6 {[%emt 0:00:06]} 3. Bb5 {[%emt 0:00:19]} e6 {[%emt 0:00:15]} 4. O-O {[%emt 0:00:38]} Nge7 {[%emt 0:00:16]} 5. Re1 {[%emt 0:02:36]} a6 {[%emt 0:00:21]} 6. Bf1 {[%emt 0:00:12]} d5 {[%emt 0:02:09]} 7. exd5 {[%emt 0:03:44]} Nxd5 {[%emt 0:00:46]} 8. c3 {[%emt 0:06:16]} Be7 {[%emt 0:01:05]} 9. d4 {[%emt 0:00:34]} O-O {[%emt 0:01:50]} 10. c4 {[%emt 0:09:05]} Nf6 {[%emt 0:00:38]} 11. Be3 {[%emt 0:00:07]} cxd4 {[%emt 0:08:30]} 12. Nxd4 {[%emt 0:00:10]} Bd7 {[%emt 0:03:56]} 13. Nc3 {[%emt 0:01:58]} Nxd4 {[%emt 0:01:15]} 14. Bxd4 {[%emt 0:05:02]} Bc6 {[%emt 0:00:35]} 15. Qd3 {[%emt 0:01:49]} Qc7 {[%emt 0:02:51]} 16. Be5 {[%emt 0:09:19]} Qb6 {[%emt 0:08:16]} 17. Qg3 {[%emt 0:06:42]} Rfc8 {[%emt 0:01:15]} 18. Rad1 {[%emt 0:02:06]} Ne8 {[%emt 0:00:52]} 19. Ne4 {[%emt 0:07:51]} Bxe4 {[%emt 0:03:03]} 20. Rxe4 {[%emt 0:00:02]} Bf6 {[%emt 0:00:21]} 21. b3 {[%emt 0:01:54]} Rd8 {[%emt 0:08:16]} 22. Red4 {[%emt 0:00:55]} Rxd4 {[%emt 0:01:51]} 23. Rxd4 {[%emt 0:00:03]} Qa5 {[%emt 0:21:58]} 24. Bxf6 {[%emt 0:02:40]} Nxf6 {[%emt 0:00:03]} 25. Qf3 {[%emt 0:04:10]} Rb8 {[%emt 0:02:31]} 26. a4 {[%emt 0:01:57]} e5 {[%emt 0:03:53]} 27. Rd1 {[%emt 0:01:54]} e4 {[%emt 0:05:25]} 28. Qe3 {[%emt 0:05:14]} h6 {[%emt 0:04:54]} 29. h3 {[%emt 0:04:36]} Qb4 30. c5 {[%emt 0:06:46]} Rc8 {[%emt 0:01:53]} 31. Bc4 {[%emt 0:00:07]} Kf8 {[%emt 0:01:39]} 32. c6 {[%emt 0:12:11]} Rxc6 {[%emt 0:00:34]} 33. Rd8+ {[%emt 0:00:02]} Ke7 {[%emt 0:00:07]} 34. Rb8 {[%emt 0:06:18]} Rd6 {[%emt 0:10:39]} 35. Qf4 {[%emt 0:00:00]} Kd7 {[%emt 0:03:52]} 36. Qf5+ {[%emt 0:00:00]} Ke7 {[%emt 0:00:35]} 37. Qc8 {[%emt 0:00:00]} Rd1+ {[%emt 0:00:35]} 38. Kh2 {[%emt 0:00:00]} Qd6+ {[%emt 0:00:34]} 39. g3 {[%emt 0:00:00]} Nd5 {[%emt 0:01:08]} 40. Qf8+ {[%emt 0:00:15]} Ke6 {[%emt 0:00:08]} 41. Re8+ {[%emt 0:00:04]} Kd7 {[%emt 0:00:18]} 42. Rd8+ {[%emt 0:00:07]} 1-0

[Event "FISU WUMSCC Women 2024"]
[Site "Entebbe"]
[Date "2024.06.28"]
[Round "7.4"]
[White "Walter, Ema"]
[Black "Jarocka, Liwia"]
[Result "0-1"]
[ECO "B22"]
[WhiteElo "2099"]
[BlackElo "2237"]
[Annotator "RC"]
[PlyCount "70"]
[EventDate "2024.06.24"]
[EventType "swiss"]
[EventCountry "UGA"]
[SourceTitle "playchess.com"]
[Source "ChessBase"]
[SourceQuality "1"]
[TimeControl "5400+30"]

1. e4 {[%emt 0:00:02]} c5 {[%emt 0:00:31]} 2. c3 {[%emt 0:00:05]} Nf6 {[%emt 0:00:05]} 3. e5 {[%emt 0:00:05]} Nd5 {[%emt 0:00:03]} 4. Nf3 {[%emt 0:00:09]} Nc6 {[%emt 0:00:14]} 5. Bc4 {[%emt 0:00:07]} Nb6 {[%emt 0:00:11]} 6. Bb3 {[%emt 0:00:06]} d5 {[%emt 0:00:31]} 7. exd6 {[%emt 0:00:05]} c4 {[%emt 0:00:05]} 8. Bc2 {[%emt 0:00:11]} Qxd6 {[%emt 0:00:06]} 9. O-O {[%emt 0:00:06]} Bg4 {[%emt 0:00:05]} 10. Re1 {[%emt 0:00:06]} Ne5 {[%emt 0:08:30]} 11. Rxe5 {[%emt 0:00:09]} Bxf3 {[%emt 0:00:08]} 12. Qe1 {[%emt 0:00:05]} Bc6 {[%emt 0:00:09]} 13. b3 {[%emt 0:00:21]} g6 {[%emt 0:02:04]} 14. Ba3 {[%emt 0:03:38]} Qd7 {[%emt 0:00:36]} 15. Be4 {[%emt 0:04:13]} e6 {[%emt 0:00:45]} 16. Bxf8 {[%emt 0:01:18]} Kxf8 {[%emt 0:00:06]} 17. Bxc6 {[%emt 0:01:54]} Qxc6 {[%emt 0:00:05]} 18. Na3 {[%emt 0:01:02]} Kg7 {[%emt 0:00:58]} 19. Qe2 {[%emt 0:10:40]} Rhc8 {[%emt 0:12:30]} 20. h4 {[%emt 0:06:09]} a6 {[%emt 0:08:56]} 21. h5 {[%emt 0:19:40]} Qd6 {[%emt 0:02:01]} 22. Nxc4 {[%emt 0:02:30]} Nxc4 {[%emt 0:00:07]} 23. bxc4 {[%emt 0:00:21]} Rxc4 {[%emt 0:01:20]} 24. Qxc4 {[%emt 0:11:41]} Qxe5 {[%emt 0:00:33]} 25. hxg6 {[%emt 0:17:45]} hxg6 {[%emt 0:00:16]} 26. f4 {[%emt 0:07:45]} Qd6 {[%emt 0:02:36]} 27. Rd1 {[%emt 0:01:44]} Rd8 {[%emt 0:04:49]} 28. a4 {[%emt 0:01:30]} Qb6+ {[%emt 0:01:50]} 29. d4 {[%emt 0:01:20]} Rd5 {[%emt 0:01:04]} 30. Re1 {[%emt 0:02:45]} Rf5 {[%emt 0:00:06]} 31. g3 {[%emt 0:01:55]} Rh5 {[%emt 0:00:39]} 32. Rf1 {[%emt 0:04:36]} Qb2 {[%emt 0:00:43]} 33. Rf2 {[%emt 0:00:17]} Qc1+ {[%emt 0:00:14]} 34. Rf1 {[%emt 0:00:43]} Qc2 {[%emt 0:01:30]} 35. Rf2 {[%emt 0:01:39]} Qe4 {[%emt 0:00:12]} 0-1

[Event "FISU WUMSCC Women 2024"]
[Site "Entebbe"]
[Date "2024.06.28"]
[Round "7.5"]
[White "Blanquet, Camille"]
[Black "Koubova, Anna Marie"]
[Result "1/2-1/2"]
[ECO "D27"]
[WhiteElo "2074"]
[BlackElo "2125"]
[Annotator "RC"]
[PlyCount "130"]
[EventDate "2024.06.24"]
[EventType "swiss"]
[EventCountry "UGA"]
[SourceTitle "playchess.com"]
[Source "ChessBase"]
[SourceQuality "1"]
[TimeControl "5400+30"]

1. d4 {[%emt 0:02:57]} d5 {[%emt 0:00:12]} 2. c4 {[%emt 0:00:38]} dxc4 {[%emt 0:00:15]} 3. e3 {[%emt 0:00:58]} Nf6 {[%emt 0:01:57]} 4. Nf3 {[%emt 0:01:14]} e6 {[%emt 0:00:33]} 5. Bxc4 {[%emt 0:00:21]} Be7 {[%emt 0:00:30]} 6. O-O {[%emt 0:01:44]} O-O {[%emt 0:04:45]} 7. Nc3 {[%emt 0:05:04]} a6 {[%emt 0:00:51]} 8. Bb3 {[%emt 0:02:25]} b5 {[%emt 0:02:26]} 9. Qe2 {[%emt 0:09:32]} c5 {[%emt 0:01:14]} 10. Rd1 {[%emt 0:03:11]} cxd4 {[%emt 0:02:28]} 11. Nxd4 {[%emt 0:03:13]} Qb6 {[%emt 0:01:49]} 12. e4 {[%emt 0:04:08]} Nc6 {[%emt 0:01:18]} 13. Nf3 {[%emt 0:09:20]} Rd8 {[%emt 0:08:45]} 14. Rxd8+ {[%emt 0:06:03]} Nxd8 {[%emt 0:04:19]} 15. e5 {[%emt 0:01:56]} Nd7 {[%emt 0:02:46]} 16. Bc2 {[%emt 0:07:11]} Nf8 {[%emt 0:02:34]} 17. Bg5 {[%emt 0:04:48]} Nc6 {[%emt 0:01:12]} 18. Qe4 {[%emt 0:01:39]} Bb7 {[%emt 0:01:07]} 19. Qh4 {[%emt 0:02:24]} Bxg5 {[%emt 0:03:11]} 20. Nxg5 {[%emt 0:00:11]} h6 {[%emt 0:00:24]} 21. Nf3 {[%emt 0:01:07]} Rd8 {[%emt 0:00:56]} 22. Re1 {[%emt 0:03:32]} Nd4 {[%emt 0:03:15]} 23. Nxd4 {[%emt 0:01:49]} Rxd4 {[%emt 0:00:59]} 24. Ne4 {[%emt 0:04:07]} Rc4 {[%emt 0:13:54]} 25. Bd3 {[%emt 0:02:52]} Qa5 {[%emt 0:06:21]} 26. f3 {[%emt 0:08:03]} Rd4 {[%emt 0:03:33]} 27. Bb1 {[%emt 0:05:50]} Ng6 {[%emt 0:02:12]} 28. Qf2 {[%emt 0:00:49]} Bxe4 {[%emt 0:02:49]} 29. Bxe4 {[%emt 0:01:00]} Nxe5 30. Rc1 {[%emt 0:01:16]} Rc4 {[%emt 0:01:39]} 31. Rd1 {[%emt 0:00:21]} f5 {[%emt 0:00:26]} 32. Bb1 {[%emt 0:01:48]} Qc7 {[%emt 0:00:53]} 33. Qe3 {[%emt 0:00:59]} Qc5 {[%emt 0:00:35]} 34. Qxc5 {[%emt 0:00:35]} Rxc5 {[%emt 0:00:05]} 35. Kf2 {[%emt 0:00:19]} Nc4 {[%emt 0:00:40]} 36. b4 {[%emt 0:01:11]} Rc6 {[%emt 0:00:34]} 37. Bc2 {[%emt 0:00:39]} Rd6 {[%emt 0:01:45]} 38. Rxd6 {[%emt 0:00:22]} Nxd6 {[%emt 0:00:04]} 39. Bb3 {[%emt 0:00:24]} Kf7 {[%emt 0:01:50]} 40. Ke3 {[%emt 0:00:23]} Kf6 {[%emt 0:00:13]} 41. Kd4 Nb7 {[%emt 0:05:55]} 42. f4 {[%emt 0:01:08]} g5 {[%emt 0:00:57]} 43. g3 {[%emt 0:00:06]} gxf4 {[%emt 0:01:22]} 44. gxf4 {[%emt 0:00:06]} Ke7 {[%emt 0:01:51]} 45. a4 {[%emt 0:01:45]} Kd6 {[%emt 0:02:37]} 46. axb5 {[%emt 0:00:32]} axb5 {[%emt 0:00:08]} 47. Bd1 {[%emt 0:00:15]} Nd8 {[%emt 0:00:20]} 48. Be2 {[%emt 0:00:28]} Nc6+ {[%emt 0:00:10]} 49. Kc3 {[%emt 0:00:17]} Ne7 {[%emt 0:02:42]} 50. Bxb5 {[%emt 0:00:54]} Nd5+ {[%emt 0:00:06]} 51. Kd4 {[%emt 0:00:27]} Nxf4 {[%emt 0:03:27]} 52. Bf1 {[%emt 0:00:11]} e5+ {[%emt 0:00:10]} 53. Kc4 {[%emt 0:00:19]} Nd5 {[%emt 0:00:24]} 54. Be2 {[%emt 0:01:36]} e4 {[%emt 0:00:19]} 55. b5 {[%emt 0:00:53]} f4 {[%emt 0:00:43]} 56. Kd4 {[%emt 0:00:33]} f3 {[%emt 0:00:40]} 57. Bd1 {[%emt 0:00:18]} Nf4 {[%emt 0:03:47]} 58. Ke3 {[%emt 0:02:17]} Ke5 {[%emt 0:00:07]} 59. Bb3 {[%emt 0:00:50]} Nd5+ {[%emt 0:00:48]} 60. Kf2 {[%emt 0:00:10]} Ne7 {[%emt 0:06:49]} 61. b6 {[%emt 0:00:50]} Kf4 {[%emt 0:01:46]} 62. b7 {[%emt 0:00:12]} e3+ {[%emt 0:00:08]} 63. Ke1 {[%emt 0:00:19]} f2+ {[%emt 0:00:16]} 64. Ke2 {[%emt 0:00:17]} Nc6 {[%emt 0:00:23]} 65. Bd5 {[%emt 0:00:22]} Nb8 {[%emt 0:00:21]} 1/2-1/2

[Event "FISU WUMSCC Women 2024"]
[Site "Entebbe"]
[Date "2024.06.28"]
[Round "7.6"]
[White "Wijesuriya, G P Y"]
[Black "Djidjeli, Sarah"]
[Result "1-0"]
[ECO "B23"]
[WhiteElo "1833"]
[BlackElo "2043"]
[Annotator "NA RC"]
[PlyCount "83"]
[EventDate "2024.06.24"]
[EventType "swiss"]
[EventCountry "UGA"]
[SourceTitle "playchess.com"]
[Source "ChessBase"]
[SourceQuality "1"]
[TimeControl "5400+30"]

1. e4 {[%emt 0:02:21]} c5 {[%emt 0:00:07]} 2. Nc3 {[%emt 0:00:11]} Nc6 {[%emt 0:00:03]} 3. Nge2 {[%emt 0:00:12]} e5 {[%emt 0:09:41]} 4. Nd5 {[%emt 0:00:08]} Nf6 {[%emt 0:05:11]} 5. Nec3 {[%emt 0:00:08]} d6 {[%emt 0:01:03]} 6. Bc4 {[%emt 0:00:10]} Be7 {[%emt 0:06:36]} 7. O-O {[%emt 0:00:15]} a6 {[%emt 0:02:03]} 8. a4 {[%emt 0:00:08]} O-O {[%emt 0:07:48]} 9. d3 {[%emt 0:00:11]} Nxd5 {[%emt 0:15:38]} 10. Nxd5 {[%emt 0:00:12]} Be6 {[%emt 0:01:00]} 11. f4 {[%emt 0:00:31]} exf4 {[%emt 0:00:58]} 12. Bxf4 {[%emt 0:00:12]} Nb4 {[%emt 0:14:05]} 13. Nxe7+ $11 {[%emt 0:34:21]} Qxe7 {[%emt 0:00:25]} 14. c3 {[%emt 0:00:11]} Nc6 {[%emt 0:00:48]} 15. Bd5 {[%emt 0:10:17]} Ne5 {[%emt 0:02:32]} 16. d4 {[%emt 0:06:39]} Ng6 {[%emt 0:00:40]} 17. Bg3 {[%emt 0:00:29]} Bxd5 {[%emt 0:06:48]} 18. exd5 {[%emt 0:00:09]} c4 {[%emt 0:03:20]} 19. Qf3 {[%emt 0:02:09]} Rad8 20. Rae1 {[%emt 0:07:08]} Qd7 {[%emt 0:04:32]} 21. h4 {[%emt 0:03:46]} h6 {[%emt 0:04:24]} 22. h5 {[%emt 0:04:25]} Nh8 {[%emt 0:00:07]} 23. Re4 {[%emt 0:02:01]} Qxa4 {[%emt 0:05:55]} 24. Bh4 {[%emt 0:13:12]} f6 {[%emt 0:06:09]} 25. Re7 {[%emt 0:03:24]} Rd7 {[%emt 0:00:40]} 26. Rfe1 {[%emt 0:01:22]} Rxe7 {[%emt 0:00:45]} 27. Rxe7 {[%emt 0:00:03]} Rf7 {[%emt 0:00:27]} 28. Re6 Qa1+ {[%emt 0:01:13]} 29. Kh2 {[%emt 0:02:06]} Qxb2 {[%emt 0:00:27]} 30. Bg3 {[%emt 0:00:34]} Qc2 {[%emt 0:00:34]} 31. Bxd6 {[%emt 0:01:17]} Qd3 {[%emt 0:00:44]} 32. Re3 {[%emt 0:00:07]} Qc2 {[%emt 0:00:46]} 33. Qg4 {[%emt 0:01:44]} Qa4 {[%emt 0:00:25]} 34. Qc8+ {[%emt 0:00:20]} Kh7 {[%emt 0:00:02]} 35. Re8 {[%emt 0:00:08]} Ng6 {[%emt 0:00:18]} 36. hxg6+ {[%emt 0:00:22]} Kxg6 {[%emt 0:00:03]} 37. Qg4+ {[%emt 0:00:45]} Kh7 {[%emt 0:00:00]} 38. Qf5+ {[%emt 0:00:09]} g6 {[%emt 0:00:04]} 39. Qc8 {[%emt 0:00:05]} g5 {[%emt 0:00:19]} 40. Rh8+ {[%emt 0:01:31]} Kg6 {[%emt 0:00:04]} 41. Bf8 {[%emt 0:00:58]} Rh7 {[%emt 0:00:39]} 42. Rg8+ {[%emt 0:00:08]} 1-0

[Event "FISU WUMSCC Women 2024"]
[Site "Entebbe"]
[Date "2024.06.28"]
[Round "7.7"]
[White "Nansubuga, Gloria"]
[Black "Tharushi, T H D Niklesha"]
[Result "0-1"]
[ECO "E20"]
[WhiteElo "1622"]
[BlackElo "1810"]
[Annotator "NA RC"]
[PlyCount "156"]
[EventDate "2024.06.24"]
[EventType "swiss"]
[EventCountry "UGA"]
[SourceTitle "playchess.com"]
[Source "ChessBase"]
[SourceQuality "1"]
[TimeControl "5400+30"]

1. d4 {[%emt 1:31:00]} Nf6 {[%emt 0:02:12]} 2. c4 {[%emt 0:00:00]} e6 {[%emt 0:00:07]} 3. Nc3 {[%emt 0:00:00]} Bb4 {[%emt 0:00:04]} 4. Bd2 {[%emt 0:00:00]} O-O {[%emt 0:00:16]} 5. a3 {[%emt 0:00:00]} Bxc3 {[%emt 0:00:32]} 6. Bxc3 {[%emt 0:00:00]} d5 {[%emt 0:00:37]} 7. e3 {[%emt 0:00:00]} b6 {[%emt 0:00:28]} 8. Nf3 {[%emt 0:00:00]} Ne4 {[%emt 0:06:56]} 9. Qc2 {[%emt 0:00:00]} Nd7 {[%emt 0:02:58]} 10. Bd3 {[%emt 0:00:00]} Bb7 {[%emt 0:02:14]} 11. Rc1 {[%emt 0:00:00]} Rc8 {[%emt 0:00:50]} 12. O-O {[%emt 0:00:00]} f5 {[%emt 0:00:56]} 13. b4 {[%emt 0:00:00]} Rf6 {[%emt 0:06:38]} 14. c5 {[%emt 0:00:00]} Rh6 {[%emt 0:03:05]} 15. Bd2 {[%emt 0:00:00]} c6 {[%emt 0:00:31]} 16. g3 {[%emt 0:00:00]} g5 {[%emt 0:08:26]} 17. Ne1 {[%emt 0:00:00]} Qe8 {[%emt 0:01:41]} 18. f3 {[%emt 0:00:00]} Qh5 {[%emt 0:01:19]} 19. h4 {[%emt 0:00:00]} Nxg3 {[%emt 0:00:20]} 20. Ng2 {[%emt 0:00:00]} Nxf1 {[%emt 0:03:06]} 21. Rxf1 {[%emt 0:00:00]} gxh4 {[%emt 0:02:14]} 22. e4 {[%emt 0:00:00]} h3 {[%emt 0:05:27]} 23. Bxh6 {[%emt 0:00:00]} h2+ {[%emt 0:00:13]} 24. Kh1 {[%emt 0:00:00]} Qxh6 {[%emt 0:00:16]} 25. Ne1 {[%emt 0:00:00]} fxe4 {[%emt 0:09:41]} 26. fxe4 {[%emt 0:00:00]} Rf8 {[%emt 0:00:10]} 27. Qg2+ {[%emt 0:00:00]} Qg7 {[%emt 0:06:10]} 28. Rxf8+ {[%emt 0:00:00]} Nxf8 {[%emt 0:00:03]} 29. Qxg7+ {[%emt 0:00:00]} Kxg7 {[%emt 0:00:02]} 30. Kxh2 {[%emt 0:00:00]} Nd7 {[%emt 0:06:18]} 31. e5 {[%emt 0:00:00]} bxc5 {[%emt 0:02:05]} 32. bxc5 {[%emt 0:00:00]} Nb8 {[%emt 0:00:01]} 33. Nf3 {[%emt 0:00:00]} Ba6 {[%emt 0:00:45]} 34. Bc2 {[%emt 0:00:00]} h6 {[%emt 0:03:18]} 35. Kg3 {[%emt 0:00:00]} Be2 {[%emt 0:01:13]} 36. Nd2 {[%emt 0:00:00]} Bh5 {[%emt 0:02:16]} 37. Nb3 {[%emt 0:00:00]} Bg6 {[%emt 0:00:14]} 38. Bd1 {[%emt 0:00:00]} Bd3 {[%emt 0:01:54]} 39. Na5 {[%emt 0:00:00]} Kg6 {[%emt 0:01:53]} 40. Bg4 {[%emt 0:00:00]} Bf5 {[%emt 0:01:13]} 41. Bd1 {[%emt 0:00:00]} Bd3 {[%emt 0:01:50]} 42. Bg4 {[%emt 0:00:00]} Kf7 {[%emt 0:00:03]} 43. Kh4 {[%emt 0:00:00]} Bg6 {[%emt 0:00:46]} 44. Nb7 {[%emt 0:00:00]} Ke7 {[%emt 0:00:13]} 45. Bh5 {[%emt 0:00:00]} Bc2 {[%emt 0:02:45]} 46. Nd6 {[%emt 0:00:00]} Na6 {[%emt 0:00:36]} 47. Nf7 {[%emt 0:00:00]} Nc7 {[%emt 0:00:38]} 48. Nxh6 {[%emt 0:00:00]} Nb5 {[%emt 0:00:15]} 49. Kg5 {[%emt 0:00:00]} Nxa3 {[%emt 0:01:37]} 50. Kf4 {[%emt 0:00:00]} Nc4 {[%emt 0:00:38]} 51. Be2 {[%emt 0:00:00]} a5 {[%emt 0:01:44]} 52. Bxc4 {[%emt 0:00:00]} dxc4 {[%emt 0:00:03]} 53. Ke3 {[%emt 0:00:00]} c3 {[%emt 0:01:03]} 54. Ng8+ {[%emt 0:00:00]} Kf8 {[%emt 0:01:20]} 55. Nf6 {[%emt 0:00:00]} a4 {[%emt 0:00:03]} 56. d5 {[%emt 0:00:00]} exd5 {[%emt 0:01:07]} 57. Kd4 {[%emt 0:00:00]} Ke7 {[%emt 0:00:57]} 58. Kxc3 {[%emt 0:00:00]} Bf5 {[%emt 0:00:03]} 59. Kb4 {[%emt 0:00:00]} Ke6 {[%emt 0:00:05]} 60. Kxa4 {[%emt 0:00:00]} Kxe5 {[%emt 0:00:04]} 61. Nh5 {[%emt 0:00:00]} Kd4 {[%emt 0:01:02]} 62. Kb4 {[%emt 0:00:00]} Ke3 {[%emt 0:00:10]} 63. Ng7 {[%emt 0:00:00]} Bg4 {[%emt 0:00:47]} 64. Ne8 {[%emt 0:00:00]} d4 {[%emt 0:00:06]} 65. Nd6 {[%emt 0:00:00]} Be6 {[%emt 0:00:13]} 66. Ka5 {[%emt 0:00:00]} d3 {[%emt 0:00:22]} 67. Kb6 {[%emt 0:00:00]} d2 {[%emt 0:00:16]} 68. Kxc6 {[%emt 0:00:00]} d1=Q {[%emt 0:00:04]} 69. Kc7 {[%emt 0:00:00]} Qc2 {[%emt 0:00:06]} 70. Nb7 {[%emt 0:00:00]} Bd5 {[%emt 0:00:06]} 71. Kd6 {[%emt 0:00:00]} Bxb7 {[%emt 0:00:08]} 72. c6 {[%emt 0:00:00]} Qxc6+ {[%emt 0:00:04]} 73. Ke7 {[%emt 0:00:00]} Bc8 {[%emt 0:00:13]} 74. Kf8 {[%emt 0:00:00]} Qc7 {[%emt 0:00:19]} 75. Kg8 {[%emt 0:37:00]} Qe7 {[%emt 0:19:32]} 76. Kh8 {[%emt 0:00:30]} Bf5 {[%emt 0:00:30]} 77. Kg8 {[%emt 0:00:30]} Bg6 {[%emt 0:00:30]} 78. Kh8 {[%emt 0:00:00]} Qf8# {[%emt 0:00:00]} 0-1